[Event "Titled Tuesday Blitz August 16 Early 2022"]
[White "Avalos Parra, Joao"]
[Black "Moreira, Ronaldo Alonso"]
[WhiteFideId "3402541"]
[BlackFideId "2110547"]
[WhiteElo "2173"]
[BlackElo "2037"]
[Result "1-0"]
[Round "04"]
[TimeControl "180+2"]
[Date "2022.08.18"]
[WhiteClock "0:00:00"]
[BlackClock "0:00:00"]

1. d4 {[%clk 0:00:00]}  Nf6 {[%clk 0:00:00]} 2. Nc3 {[%clk 0:00:00]}  d5 {[%clk 0:00:00]} 3. Bg5 {[%clk 0:00:00]}  e6 {[%clk 0:00:00]} 4. e4 {[%clk 0:00:00]}  dxe4 {[%clk 0:00:00]} 5. Nxe4 {[%clk 0:00:00]}  Be7 {[%clk 0:00:00]} 6. Bxf6 {[%clk 0:00:00]}  gxf6 {[%clk 0:00:00]} 7. Qd2 {[%clk 0:00:00]}  f5 {[%clk 0:00:00]} 8. Nc3 {[%clk 0:00:00]}  Bf6 {[%clk 0:00:00]} 9. O-O-O {[%clk 0:00:00]}  a6 {[%clk 0:00:00]} 10. d5 {[%clk 0:00:00]}  e5 {[%clk 0:00:00]} 11. Re1 {[%clk 0:00:00]}  Qd6 {[%clk 0:00:00]} 12. Nf3 {[%clk 0:00:00]}  O-O {[%clk 0:00:00]} 13. Kb1 {[%clk 0:00:00]}  Nd7 {[%clk 0:00:00]} 14. h4 {[%clk 0:00:00]}  b5 {[%clk 0:00:00]} 15. g4 {[%clk 0:00:00]}  fxg4 {[%clk 0:00:00]} 16. Ne4 {[%clk 0:00:00]}  Qe7 {[%clk 0:00:00]} 17. Nxf6+ {[%clk 0:00:00]}  Qxf6 {[%clk 0:00:00]} 18. Ng5 {[%clk 0:00:00]}  Nb6 {[%clk 0:00:00]} 19. Bd3 {[%clk 0:00:00]}  Rd8 {[%clk 0:00:00]} 20. Bxh7+ {[%clk 0:00:00]}  Kg7 {[%clk 0:00:00]} 21. Be4 {[%clk 0:00:00]}  Bf5 {[%clk 0:00:00]} 22. Rhg1 {[%clk 0:00:00]}  Nc4 {[%clk 0:00:00]} 23. Qe2 {[%clk 0:00:00]}  Nd6 {[%clk 0:00:00]} 24. Bxf5 {[%clk 0:00:00]}  Qxf5 {[%clk 0:00:00]} 25. Rxg4 {[%clk 0:00:00]}  Kf8 {[%clk 0:00:00]} 26. Qxe5 {[%clk 0:00:00]}  Qxe5 {[%clk 0:00:00]} 27. Rxe5 {[%clk 0:00:00]}  Nc4 {[%clk 0:00:00]} 28. Rf5 {[%clk 0:00:00]}  Rd7 {[%clk 0:00:00]} 29. Rgf4 {[%clk 0:00:00]}  Re8 {[%clk 0:00:00]} 30. Rxf7+ {[%clk 0:00:00]}  Rxf7 {[%clk 0:00:00]} 31. Rxf7+ {[%clk 0:00:00]}  Kg8 {[%clk 0:00:00]} 32. a3 {[%clk 0:00:00]}  Re1+ {[%clk 0:00:00]} 33. Ka2 {[%clk 0:00:00]}  Re5 {[%clk 0:00:00]} 34. Rxc7 {[%clk 0:00:00]}  Rxd5 {[%clk 0:00:00]} 35. a4 {[%clk 0:00:00]}  Rd2 {[%clk 0:00:00]} 36. axb5 {[%clk 0:00:00]}  axb5 {[%clk 0:00:00]} 37. Kb3 {[%clk 0:00:00]} 1-0


[Site "https://www.chess.com"]

[Event "Titled Tuesday Blitz August 16 Early 2022"]
[White "Baches Garcia, Guillermo"]
[Black "Barrientos, Sergio E"]
[WhiteFideId "2209764"]
[BlackFideId "4401824"]
[WhiteElo "2326"]
[BlackElo "2397"]
[Result "1/2-1/2"]
[Round "04"]
[TimeControl "180+2"]
[Date "2022.08.18"]
[WhiteClock "0:00:00"]
[BlackClock "0:00:00"]

1. e4 {[%clk 0:00:00]}  d5 {[%clk 0:00:00]} 2. exd5 {[%clk 0:00:00]}  Qxd5 {[%clk 0:00:00]} 3. Nc3 {[%clk 0:00:00]}  Qa5 {[%clk 0:00:00]} 4. g3 {[%clk 0:00:00]}  Nf6 {[%clk 0:00:00]} 5. Bg2 {[%clk 0:00:00]}  c6 {[%clk 0:00:00]} 6. Nge2 {[%clk 0:00:00]}  Bg4 {[%clk 0:00:00]} 7. h3 {[%clk 0:00:00]}  Bxe2 {[%clk 0:00:00]} 8. Qxe2 {[%clk 0:00:00]}  Nbd7 {[%clk 0:00:00]} 9. b4 {[%clk 0:00:00]}  Qc7 {[%clk 0:00:00]} 10. O-O {[%clk 0:00:00]}  e6 {[%clk 0:00:00]} 11. Rb1 {[%clk 0:00:00]}  a6 {[%clk 0:00:00]} 12. a4 {[%clk 0:00:00]}  Be7 {[%clk 0:00:00]} 13. b5 {[%clk 0:00:00]}  axb5 {[%clk 0:00:00]} 14. axb5 {[%clk 0:00:00]}  O-O {[%clk 0:00:00]} 15. d3 {[%clk 0:00:00]}  Nd5 {[%clk 0:00:00]} 16. Bd2 {[%clk 0:00:00]}  Rfe8 {[%clk 0:00:00]} 17. Ne4 {[%clk 0:00:00]}  h6 {[%clk 0:00:00]} 18. c4 {[%clk 0:00:00]}  N5f6 {[%clk 0:00:00]} 19. Be3 {[%clk 0:00:00]}  Rac8 {[%clk 0:00:00]} 20. b6 {[%clk 0:00:00]}  Qb8 {[%clk 0:00:00]} 21. d4 {[%clk 0:00:00]}  Nxe4 {[%clk 0:00:00]} 22. Bxe4 {[%clk 0:00:00]}  Nf6 {[%clk 0:00:00]} 23. Bg2 {[%clk 0:00:00]}  Rcd8 {[%clk 0:00:00]} 24. Rfd1 {[%clk 0:00:00]}  Qd6 {[%clk 0:00:00]} 25. Bf4 {[%clk 0:00:00]}  Qd7 {[%clk 0:00:00]} 26. Ra1 {[%clk 0:00:00]}  Ra8 {[%clk 0:00:00]} 27. Ra7 {[%clk 0:00:00]}  Rxa7 {[%clk 0:00:00]} 28. bxa7 {[%clk 0:00:00]}  Ra8 {[%clk 0:00:00]} 29. Qa2 {[%clk 0:00:00]}  Bc5 {[%clk 0:00:00]} 30. dxc5 {[%clk 0:00:00]}  Qxd1+ {[%clk 0:00:00]} 31. Kh2 {[%clk 0:00:00]}  Qd4 {[%clk 0:00:00]} 32. Bd6 {[%clk 0:00:00]}  Nd7 {[%clk 0:00:00]} 33. Qa5 {[%clk 0:00:00]}  Nf8 {[%clk 0:00:00]} 34. Qc7 {[%clk 0:00:00]}  Rxa7 {[%clk 0:00:00]} 35. Qb8 {[%clk 0:00:00]}  Ra2 {[%clk 0:00:00]} 36. Qxf8+ {[%clk 0:00:00]}  Kh7 {[%clk 0:00:00]} 37. Qxf7 {[%clk 0:00:00]}  Qxf2 {[%clk 0:00:00]} 38. Qxf2 {[%clk 0:00:00]}  Rxf2 {[%clk 0:00:00]} 39. Kg1 {[%clk 0:00:00]}  Re2 {[%clk 0:00:00]} 40. Bf1 {[%clk 0:00:00]}  Rd2 {[%clk 0:00:00]} 41. Bf4 {[%clk 0:00:00]}  Rb2 {[%clk 0:00:00]} 42. Bd6 {[%clk 0:00:00]}  g5 {[%clk 0:00:00]} 43. g4 {[%clk 0:00:00]}  Kg6 {[%clk 0:00:00]} 44. Bg2 {[%clk 0:00:00]}  Kf6 {[%clk 0:00:00]} 45. Be4 {[%clk 0:00:00]}  e5 {[%clk 0:00:00]} 46. Kf1 {[%clk 0:00:00]}  Rb3 {[%clk 0:00:00]} 47. Bf5 {[%clk 0:00:00]}  Rxh3 {[%clk 0:00:00]} 48. Bc8 {[%clk 0:00:00]}  Rb3 {[%clk 0:00:00]} 49. Ke2 {[%clk 0:00:00]}  e4 {[%clk 0:00:00]} 50. Kf2 {[%clk 0:00:00]}  Rb4 {[%clk 0:00:00]} 51. Ke3 {[%clk 0:00:00]}  Rxc4 {[%clk 0:00:00]} 52. Bxb7 {[%clk 0:00:00]}  Rc3+ {[%clk 0:00:00]} 53. Kxe4 {[%clk 0:00:00]}  Rc4+ {[%clk 0:00:00]} 54. Kd3 {[%clk 0:00:00]}  Rxg4 {[%clk 0:00:00]} 55. Bxc6 {[%clk 0:00:00]}  Rg1 {[%clk 0:00:00]} 56. Bd7 {[%clk 0:00:00]}  h5 {[%clk 0:00:00]} 57. c6 {[%clk 0:00:00]}  Rd1+ {[%clk 0:00:00]} 58. Ke4 {[%clk 0:00:00]}  Rxd6 {[%clk 0:00:00]} 59. c7 {[%clk 0:00:00]}  Rxd7 {[%clk 0:00:00]} 60. c8=Q {[%clk 0:00:00]}  Re7+ {[%clk 0:00:00]} 61. Kf3 {[%clk 0:00:00]}  Re5 {[%clk 0:00:00]} 62. Qf8+ {[%clk 0:00:00]}  Kg6 {[%clk 0:00:00]} 63. Qg8+ {[%clk 0:00:00]}  Kf6 {[%clk 0:00:00]} 64. Qh8+ {[%clk 0:00:00]}  Ke6 {[%clk 0:00:00]} 65. Qxh5 {[%clk 0:00:00]}  Rf5+ {[%clk 0:00:00]} 66. Kg4 {[%clk 0:00:00]}  Rf4+ {[%clk 0:00:00]} 67. Kg3 {[%clk 0:00:00]}  Kf5 {[%clk 0:00:00]} 68. Qf7+ {[%clk 0:00:00]}  Ke5 {[%clk 0:00:00]} 69. Qe7+ {[%clk 0:00:00]}  Kf5 {[%clk 0:00:00]} 70. Qf7+ {[%clk 0:00:00]}  Ke5 {[%clk 0:00:00]} 71. Qg7+ {[%clk 0:00:00]}  Kf5 {[%clk 0:00:00]} 72. Qf7+ {[%clk 0:00:00]} 1/2-1/2


[Site "https://www.chess.com"]

[Event "Titled Tuesday Blitz August 16 Early 2022"]
[White "Bashirli, Nail"]
[Black "Rios Escobar, Adan"]
[WhiteFideId "13406809"]
[BlackFideId "3403645"]
[WhiteElo "2333"]
[BlackElo "2276"]
[Result "1-0"]
[Round "04"]
[TimeControl "180+2"]
[Date "2022.08.18"]
[WhiteClock "0:00:00"]
[BlackClock "0:00:00"]

1. e4 {[%clk 0:00:00]}  c5 {[%clk 0:00:00]} 2. Nf3 {[%clk 0:00:00]}  d6 {[%clk 0:00:00]} 3. d4 {[%clk 0:00:00]}  cxd4 {[%clk 0:00:00]} 4. Nxd4 {[%clk 0:00:00]}  Nf6 {[%clk 0:00:00]} 5. Nc3 {[%clk 0:00:00]}  a6 {[%clk 0:00:00]} 6. Bc4 {[%clk 0:00:00]}  e6 {[%clk 0:00:00]} 7. Bb3 {[%clk 0:00:00]}  b5 {[%clk 0:00:00]} 8. Qf3 {[%clk 0:00:00]}  Qc7 {[%clk 0:00:00]} 9. O-O {[%clk 0:00:00]}  Be7 {[%clk 0:00:00]} 10. Qg3 {[%clk 0:00:00]}  Nc6 {[%clk 0:00:00]} 11. Nxc6 {[%clk 0:00:00]}  Qxc6 {[%clk 0:00:00]} 12. Re1 {[%clk 0:00:00]}  Bb7 {[%clk 0:00:00]} 13. Bg5 {[%clk 0:00:00]}  O-O-O {[%clk 0:00:00]} 14. Rad1 {[%clk 0:00:00]}  h6 {[%clk 0:00:00]} 15. Be3 {[%clk 0:00:00]}  h5 {[%clk 0:00:00]} 16. f3 {[%clk 0:00:00]}  h4 {[%clk 0:00:00]} 17. Qf2 {[%clk 0:00:00]}  h3 {[%clk 0:00:00]} 18. g3 {[%clk 0:00:00]}  g5 {[%clk 0:00:00]} 19. Bb6 {[%clk 0:00:00]}  g4 {[%clk 0:00:00]} 20. f4 {[%clk 0:00:00]}  Kb8 {[%clk 0:00:00]} 21. Ba7+ {[%clk 0:00:00]}  Ka8 {[%clk 0:00:00]} 22. Qb6 {[%clk 0:00:00]}  Nxe4 {[%clk 0:00:00]} 23. Rxe4 {[%clk 0:00:00]}  d5 {[%clk 0:00:00]} 24. Re2 {[%clk 0:00:00]}  d4 {[%clk 0:00:00]} 25. Qxc6 {[%clk 0:00:00]}  Bxc6 {[%clk 0:00:00]} 26. Bxd4 {[%clk 0:00:00]}  Rxd4 {[%clk 0:00:00]} 27. Rxd4 {[%clk 0:00:00]}  Bc5 {[%clk 0:00:00]} 28. Rd2 {[%clk 0:00:00]}  Rd8 {[%clk 0:00:00]} 29. Ne2 {[%clk 0:00:00]}  Bf3 {[%clk 0:00:00]} 30. c3 {[%clk 0:00:00]}  f6 {[%clk 0:00:00]} 31. Kf1 {[%clk 0:00:00]}  Bxe2+ {[%clk 0:00:00]} 32. Kxe2 {[%clk 0:00:00]}  Bxd4 {[%clk 0:00:00]} 33. Rxd4 {[%clk 0:00:00]}  Re8 {[%clk 0:00:00]} 34. Rd6 {[%clk 0:00:00]}  e5 {[%clk 0:00:00]} 35. f5 {[%clk 0:00:00]}  Kb7 {[%clk 0:00:00]} 36. Re6 {[%clk 0:00:00]}  Rd8 {[%clk 0:00:00]} 37. Rxf6 {[%clk 0:00:00]}  a5 {[%clk 0:00:00]} 38. Rf7+ {[%clk 0:00:00]}  Kb6 {[%clk 0:00:00]} 39. Rf6+ {[%clk 0:00:00]}  Kc5 {[%clk 0:00:00]} 40. Re6 {[%clk 0:00:00]}  a4 {[%clk 0:00:00]} 41. Bc2 {[%clk 0:00:00]}  Kd5 {[%clk 0:00:00]} 42. Re7 {[%clk 0:00:00]}  Rf8 {[%clk 0:00:00]} 43. Rg7 {[%clk 0:00:00]}  Rf6 {[%clk 0:00:00]} 44. Rxg4 {[%clk 0:00:00]}  Kc5 {[%clk 0:00:00]} 45. Be4 {[%clk 0:00:00]}  Kd6 {[%clk 0:00:00]} 46. b4 {[%clk 0:00:00]}  axb3 {[%clk 0:00:00]} 47. axb3 {[%clk 0:00:00]}  Kc5 {[%clk 0:00:00]} 48. Rg6 {[%clk 0:00:00]}  Rf8 {[%clk 0:00:00]} 49. Rc6# {[%clk 0:00:00]} 1-0


[Site "https://www.chess.com"]

[Event "Titled Tuesday Blitz August 16 Early 2022"]
[White "Beerdsen, Thomas"]
[Black "Bortnyk, Olexandr"]
[WhiteFideId "1030108"]
[BlackFideId "14120828"]
[WhiteElo "2567"]
[BlackElo "2723"]
[Result "1-0"]
[Round "04"]
[TimeControl "180+1"]
[Date "2022.08.16"]
[WhiteClock "0:00:04"]
[BlackClock "0:00:02"]

1. e4 {[%clk 0:03:00]}  Nf6 {[%clk 0:02:58]} 2. Nc3 {[%clk 0:03:00]}  d6 {[%clk 0:02:57]} 3. d4 {[%clk 0:03:00]}  Nbd7 {[%clk 0:02:57]} 4. Nf3 {[%clk 0:02:59]}  e5 {[%clk 0:02:58]} 5. g4 {[%clk 0:02:59]}  Nxg4 {[%clk 0:02:57]} 6. Rg1 {[%clk 0:03:00]}  Ngf6 {[%clk 0:02:58]} 7. Bc4 {[%clk 0:03:01]}  h6 {[%clk 0:02:57]} 8. a4 {[%clk 0:03:00]}  c6 {[%clk 0:02:56]} 9. a5 {[%clk 0:03:00]}  g6 {[%clk 0:02:48]} 10. Be3 {[%clk 0:02:57]}  Bg7 {[%clk 0:02:48]} 11. Qd2 {[%clk 0:02:58]}  Qe7 {[%clk 0:02:47]} 12. O-O-O {[%clk 0:02:56]}  b6 {[%clk 0:02:48]} 13. Ba2 {[%clk 0:02:43]}  bxa5 {[%clk 0:02:36]} 14. dxe5 {[%clk 0:02:28]}  dxe5 {[%clk 0:02:33]} 15. Nh4 {[%clk 0:02:27]}  Rb8 {[%clk 0:02:29]} 16. Nf5 {[%clk 0:02:23]}  gxf5 {[%clk 0:02:04]} 17. Rxg7 {[%clk 0:02:24]}  Qb4 {[%clk 0:02:04]} 18. Bb3 {[%clk 0:01:51]}  f4 {[%clk 0:01:59]} 19. Bxf4 {[%clk 0:01:38]}  exf4 {[%clk 0:02:00]} 20. e5 {[%clk 0:01:39]}  Nd5 {[%clk 0:01:55]} 21. e6 {[%clk 0:01:14]}  fxe6 {[%clk 0:01:52]} 22. Qe2 {[%clk 0:01:11]}  Nc5 {[%clk 0:00:56]} 23. Qh5+ {[%clk 0:01:09]}  Kd8 {[%clk 0:00:44]} 24. Rxd5+ {[%clk 0:01:08]}  Nd7 {[%clk 0:00:40]} 25. Rxa5 {[%clk 0:00:56]}  Qd4 {[%clk 0:00:37]} 26. Qh4+ {[%clk 0:00:47]}  Kc7 {[%clk 0:00:32]} 27. Qe7 {[%clk 0:00:38]}  Qxf2 {[%clk 0:00:25]} 28. Kb1 {[%clk 0:00:31]}  Qe3 {[%clk 0:00:17]} 29. Bxe6 {[%clk 0:00:20]}  Rb7 {[%clk 0:00:07]} 30. Ra3 {[%clk 0:00:11]}  Kb8 {[%clk 0:00:05]} 31. Qd6+ {[%clk 0:00:09]}  Ka8 {[%clk 0:00:05]} 32. Bxd7 {[%clk 0:00:10]}  Rd8 {[%clk 0:00:03]} 33. Bxc8 {[%clk 0:00:06]}  Rxb2+ {[%clk 0:00:03]} 34. Kxb2 {[%clk 0:00:06]}  Rxd6 {[%clk 0:00:04]} 35. Ba6 {[%clk 0:00:04]}  f3 {[%clk 0:00:02]} 36. Rg8+ {[%clk 0:00:04]}  Rd8 {[%clk 0:00:02]} 37. Rxd8# {[%clk 0:00:04]} 1-0


[Site "https://www.chess.com"]

[Event "Titled Tuesday Blitz August 16 Early 2022"]
[White "Bharath Subramaniyam H"]
[Black "Liu, Casper"]
[WhiteFideId "46634827"]
[BlackFideId "1454153"]
[WhiteElo "2346"]
[BlackElo "2025"]
[Result "1-0"]
[Round "04"]
[TimeControl "180+2"]
[Date "2022.08.18"]
[WhiteClock "0:00:00"]
[BlackClock "0:00:00"]

1. c4 {[%clk 0:00:00]}  c5 {[%clk 0:00:00]} 2. Nc3 {[%clk 0:00:00]}  g6 {[%clk 0:00:00]} 3. g3 {[%clk 0:00:00]}  Bg7 {[%clk 0:00:00]} 4. Bg2 {[%clk 0:00:00]}  Nc6 {[%clk 0:00:00]} 5. b3 {[%clk 0:00:00]}  Nf6 {[%clk 0:00:00]} 6. Ba3 {[%clk 0:00:00]}  d6 {[%clk 0:00:00]} 7. e3 {[%clk 0:00:00]}  O-O {[%clk 0:00:00]} 8. Nge2 {[%clk 0:00:00]}  e5 {[%clk 0:00:00]} 9. O-O {[%clk 0:00:00]}  Ne8 {[%clk 0:00:00]} 10. d4 {[%clk 0:00:00]}  exd4 {[%clk 0:00:00]} 11. exd4 {[%clk 0:00:00]}  Nxd4 {[%clk 0:00:00]} 12. Nxd4 {[%clk 0:00:00]}  Bxd4 {[%clk 0:00:00]} 13. Rc1 {[%clk 0:00:00]}  Nc7 {[%clk 0:00:00]} 14. b4 {[%clk 0:00:00]}  Re8 {[%clk 0:00:00]} 15. Qb3 {[%clk 0:00:00]}  Rb8 {[%clk 0:00:00]} 16. Rfd1 {[%clk 0:00:00]}  Qe7 {[%clk 0:00:00]} 17. Rd2 {[%clk 0:00:00]}  Be6 {[%clk 0:00:00]} 18. bxc5 {[%clk 0:00:00]}  dxc5 {[%clk 0:00:00]} 19. Rxd4 {[%clk 0:00:00]}  b5 {[%clk 0:00:00]} 20. Nd5 {[%clk 0:00:00]}  Qg5 {[%clk 0:00:00]} 21. Nxc7 {[%clk 0:00:00]}  cxd4 {[%clk 0:00:00]} 22. Nxe8 {[%clk 0:00:00]}  Rxe8 {[%clk 0:00:00]} 23. Qxb5 {[%clk 0:00:00]}  Rd8 {[%clk 0:00:00]} 24. Qxg5 {[%clk 0:00:00]} 1-0


[Site "https://www.chess.com"]

[Event "Titled Tuesday Blitz August 16 Early 2022"]
[White "Bodnar, Nikolay"]
[Black "Pham, Khoi"]
[WhiteFideId "14106469"]
[BlackFideId "1054988"]
[WhiteElo "2283"]
[BlackElo "2376"]
[Result "0-1"]
[Round "04"]
[TimeControl "180+2"]
[Date "2022.08.18"]
[WhiteClock "0:00:00"]
[BlackClock "0:00:00"]

1. d4 {[%clk 0:00:00]}  f5 {[%clk 0:00:00]} 2. g4 {[%clk 0:00:00]}  fxg4 {[%clk 0:00:00]} 3. h3 {[%clk 0:00:00]}  d5 {[%clk 0:00:00]} 4. hxg4 {[%clk 0:00:00]}  Bxg4 {[%clk 0:00:00]} 5. Bh3 {[%clk 0:00:00]}  Bxh3 {[%clk 0:00:00]} 6. Nxh3 {[%clk 0:00:00]}  Nf6 {[%clk 0:00:00]} 7. Ng5 {[%clk 0:00:00]}  Nc6 {[%clk 0:00:00]} 8. Qd3 {[%clk 0:00:00]}  Qd6 {[%clk 0:00:00]} 9. c3 {[%clk 0:00:00]}  e5 {[%clk 0:00:00]} 10. dxe5 {[%clk 0:00:00]}  Nxe5 {[%clk 0:00:00]} 11. Qh3 {[%clk 0:00:00]}  Qd7 {[%clk 0:00:00]} 12. Qg3 {[%clk 0:00:00]}  Bd6 {[%clk 0:00:00]} 13. Bf4 {[%clk 0:00:00]}  Nf7 {[%clk 0:00:00]} 14. Qe3+ {[%clk 0:00:00]}  Qe7 {[%clk 0:00:00]} 15. Ne6 {[%clk 0:00:00]}  Bxf4 {[%clk 0:00:00]} 16. Nxg7+ {[%clk 0:00:00]}  Kf8 {[%clk 0:00:00]} 17. Ne6+ {[%clk 0:00:00]}  Ke8 {[%clk 0:00:00]} 18. Nxf4 {[%clk 0:00:00]}  Qxe3 {[%clk 0:00:00]} 19. fxe3 {[%clk 0:00:00]}  Kd7 {[%clk 0:00:00]} 20. Nd2 {[%clk 0:00:00]}  c6 {[%clk 0:00:00]} 21. O-O-O {[%clk 0:00:00]}  Rae8 {[%clk 0:00:00]} 22. Rh3 {[%clk 0:00:00]}  Kc7 {[%clk 0:00:00]} 23. Rdh1 {[%clk 0:00:00]}  Ne5 {[%clk 0:00:00]} 24. Nd3 {[%clk 0:00:00]}  Neg4 {[%clk 0:00:00]} 25. Nf1 {[%clk 0:00:00]}  Re7 {[%clk 0:00:00]} 26. Kd2 {[%clk 0:00:00]}  Ne4+ {[%clk 0:00:00]} 27. Ke1 {[%clk 0:00:00]}  Nef6 {[%clk 0:00:00]} 28. Kd2 {[%clk 0:00:00]}  Rhe8 {[%clk 0:00:00]} 29. Rf3 {[%clk 0:00:00]}  Ne4+ {[%clk 0:00:00]} 30. Ke1 {[%clk 0:00:00]}  h6 {[%clk 0:00:00]} 31. Rh4 {[%clk 0:00:00]}  Nef6 {[%clk 0:00:00]} 32. Kd2 {[%clk 0:00:00]}  h5 {[%clk 0:00:00]} 33. Nf4 {[%clk 0:00:00]}  Re5 {[%clk 0:00:00]} 34. Ng6 {[%clk 0:00:00]}  Rg5 {[%clk 0:00:00]} 35. Nf4 {[%clk 0:00:00]}  Ne4+ {[%clk 0:00:00]} 36. Ke1 {[%clk 0:00:00]}  Ne5 {[%clk 0:00:00]} 37. Rfh3 {[%clk 0:00:00]}  Nf6 {[%clk 0:00:00]} 38. Nxh5 {[%clk 0:00:00]}  Nfg4 {[%clk 0:00:00]} 39. Nf4 {[%clk 0:00:00]}  Nf6 {[%clk 0:00:00]} 40. Rh6 {[%clk 0:00:00]}  Ne4 {[%clk 0:00:00]} 41. Rh7+ {[%clk 0:00:00]}  Kb6 {[%clk 0:00:00]} 42. Rh1 {[%clk 0:00:00]}  Nc4 {[%clk 0:00:00]} 43. b3 {[%clk 0:00:00]}  Na3 {[%clk 0:00:00]} 44. Rf7 {[%clk 0:00:00]}  Nb5 {[%clk 0:00:00]} 45. c4 {[%clk 0:00:00]}  Nbd6 {[%clk 0:00:00]} 46. Rfh7 {[%clk 0:00:00]}  dxc4 {[%clk 0:00:00]} 47. bxc4 {[%clk 0:00:00]}  Nxc4 {[%clk 0:00:00]} 48. R1h4 {[%clk 0:00:00]}  Rb5 {[%clk 0:00:00]} 49. Kd1 {[%clk 0:00:00]}  Rd8+ {[%clk 0:00:00]} 50. Kc2 {[%clk 0:00:00]}  Rb2+ {[%clk 0:00:00]} 51. Kc1 {[%clk 0:00:00]}  Nc3 {[%clk 0:00:00]} 52. Nd3 {[%clk 0:00:00]}  Rxa2 {[%clk 0:00:00]} 53. Rh2 {[%clk 0:00:00]}  Nxe2+ {[%clk 0:00:00]} 54. Rxe2 {[%clk 0:00:00]}  Rxe2 {[%clk 0:00:00]} 55. Nf4 {[%clk 0:00:00]}  Rf2 {[%clk 0:00:00]} 56. Ng3 {[%clk 0:00:00]}  Rdd2 {[%clk 0:00:00]} 57. Nge2 {[%clk 0:00:00]}  Rdxe2 {[%clk 0:00:00]} 58. Nxe2 {[%clk 0:00:00]}  Rxe2 {[%clk 0:00:00]} 59. Rh4 {[%clk 0:00:00]}  Nxe3 {[%clk 0:00:00]} 60. Re4 {[%clk 0:00:00]}  c5 {[%clk 0:00:00]} 61. Re7 {[%clk 0:00:00]}  Ka6 {[%clk 0:00:00]} 62. Kb1 {[%clk 0:00:00]}  b6 {[%clk 0:00:00]} 63. Re6 {[%clk 0:00:00]}  Re1+ {[%clk 0:00:00]} 64. Ka2 {[%clk 0:00:00]}  Nc2 {[%clk 0:00:00]} 65. Rd6 {[%clk 0:00:00]}  Nb4+ {[%clk 0:00:00]} 66. Kb2 {[%clk 0:00:00]}  Kb5 {[%clk 0:00:00]} 67. Rh6 {[%clk 0:00:00]}  Re2+ {[%clk 0:00:00]} 68. Kb1 {[%clk 0:00:00]}  Ka4 {[%clk 0:00:00]} 69. Rh4 {[%clk 0:00:00]}  Kb3 {[%clk 0:00:00]} 70. Rh3+ {[%clk 0:00:00]}  Ka4 {[%clk 0:00:00]} 71. Rh7 {[%clk 0:00:00]}  b5 {[%clk 0:00:00]} 72. Rxa7+ {[%clk 0:00:00]}  Kb3 {[%clk 0:00:00]} 73. Kc1 {[%clk 0:00:00]}  c4 {[%clk 0:00:00]} 74. Rh7 {[%clk 0:00:00]}  c3 {[%clk 0:00:00]} 75. Rh3 {[%clk 0:00:00]}  Re1# {[%clk 0:00:00]} 0-1


[Site "https://www.chess.com"]

[Event "Titled Tuesday Blitz August 16 Early 2022"]
[White "Borgaonkar Akshay"]
[Black "Yeletsky, Ivan"]
[WhiteFideId "25639110"]
[BlackFideId "24180327"]
[WhiteElo "1755"]
[BlackElo "2293"]
[Result "0-1"]
[Round "04"]
[TimeControl "180+1"]
[Date "2022.08.16"]
[WhiteClock "0:01:10"]
[BlackClock "0:02:04"]

1. e4 {[%clk 0:02:59]}  Nf6 {[%clk 0:02:58]} 2. e5 {[%clk 0:02:58]}  Nd5 {[%clk 0:02:58]} 3. d4 {[%clk 0:02:58]}  d6 {[%clk 0:02:57]} 4. Nf3 {[%clk 0:02:58]}  Bg4 {[%clk 0:02:57]} 5. Bc4 {[%clk 0:02:56]}  e6 {[%clk 0:02:57]} 6. h3 {[%clk 0:02:53]}  Bh5 {[%clk 0:02:56]} 7. Nc3 {[%clk 0:02:42]}  Nxc3 {[%clk 0:02:55]} 8. bxc3 {[%clk 0:02:41]}  dxe5 {[%clk 0:02:56]} 9. g4 {[%clk 0:02:39]}  Bg6 {[%clk 0:02:56]} 10. Nxe5 {[%clk 0:02:39]}  Bd6 {[%clk 0:02:56]} 11. Qf3 {[%clk 0:02:34]}  Nd7 {[%clk 0:02:51]} 12. Nxd7 {[%clk 0:02:31]}  Qxd7 {[%clk 0:02:51]} 13. Qxb7 {[%clk 0:02:29]}  O-O {[%clk 0:02:52]} 14. Bd3 {[%clk 0:02:07]}  Rab8 {[%clk 0:02:47]} 15. Qf3 {[%clk 0:02:06]}  f5 {[%clk 0:02:38]} 16. g5 {[%clk 0:02:03]}  Qf7 {[%clk 0:02:32]} 17. Be2 {[%clk 0:01:51]}  f4 {[%clk 0:02:30]} 18. h4 {[%clk 0:01:47]}  Bxc2 {[%clk 0:02:27]} 19. h5 {[%clk 0:01:45]}  Qf5 {[%clk 0:02:26]} 20. Qh3 {[%clk 0:01:35]}  Qe4 {[%clk 0:02:16]} 21. Qf3 {[%clk 0:01:35]}  Qf5 {[%clk 0:02:14]} 22. g6 {[%clk 0:01:32]}  Be4 {[%clk 0:02:12]} 23. gxh7+ {[%clk 0:01:15]}  Kh8 {[%clk 0:02:11]} 24. Qh3 {[%clk 0:01:15]}  Bxh1 {[%clk 0:02:10]} 25. Qxh1 {[%clk 0:01:16]}  f3 {[%clk 0:02:11]} 26. Bc4 {[%clk 0:01:13]}  Qe4+ {[%clk 0:02:08]} 27. Be3 {[%clk 0:01:13]}  Bf4 {[%clk 0:02:03]} 28. h6 {[%clk 0:01:12]}  Bxh6 {[%clk 0:02:03]} 29. O-O-O {[%clk 0:01:11]}  Bxe3+ {[%clk 0:02:02]} 30. fxe3 {[%clk 0:01:11]}  Rb1+ {[%clk 0:02:03]} 31. Kd2 {[%clk 0:01:10]}  Rb2+ {[%clk 0:02:03]} 32. Ke1 {[%clk 0:01:10]}  f2+ {[%clk 0:02:04]} 0-1


[Site "https://www.chess.com"]

[Event "Titled Tuesday Blitz August 16 Early 2022"]
[White "Cannon, David"]
[Black "Bashirli, Saadat"]
[WhiteFideId "3213110"]
[BlackFideId "13429990"]
[WhiteElo "1901"]
[BlackElo "1173"]
[Result "1-0"]
[Round "04"]
[TimeControl "180+2"]
[Date "2022.08.18"]
[WhiteClock "0:00:00"]
[BlackClock "0:00:00"]

1. d4 {[%clk 0:00:00]}  d5 {[%clk 0:00:00]} 2. c4 {[%clk 0:00:00]}  e6 {[%clk 0:00:00]} 3. Nf3 {[%clk 0:00:00]}  c6 {[%clk 0:00:00]} 4. e3 {[%clk 0:00:00]}  dxc4 {[%clk 0:00:00]} 5. Bxc4 {[%clk 0:00:00]}  b5 {[%clk 0:00:00]} 6. Bd3 {[%clk 0:00:00]}  Bb7 {[%clk 0:00:00]} 7. O-O {[%clk 0:00:00]}  Nf6 {[%clk 0:00:00]} 8. e4 {[%clk 0:00:00]}  Nbd7 {[%clk 0:00:00]} 9. e5 {[%clk 0:00:00]}  Nd5 {[%clk 0:00:00]} 10. Ng5 {[%clk 0:00:00]}  h6 {[%clk 0:00:00]} 11. Qh5 {[%clk 0:00:00]}  hxg5 {[%clk 0:00:00]} 12. Qxh8 {[%clk 0:00:00]}  Nf4 {[%clk 0:00:00]} 13. Bxf4 {[%clk 0:00:00]}  gxf4 {[%clk 0:00:00]} 14. Be4 {[%clk 0:00:00]}  Qb6 {[%clk 0:00:00]} 15. Rd1 {[%clk 0:00:00]}  c5 {[%clk 0:00:00]} 16. Bxb7 {[%clk 0:00:00]}  Qxb7 {[%clk 0:00:00]} 17. Nc3 {[%clk 0:00:00]}  cxd4 {[%clk 0:00:00]} 18. Rxd4 {[%clk 0:00:00]}  Nxe5 {[%clk 0:00:00]} 19. Rad1 {[%clk 0:00:00]}  f3 {[%clk 0:00:00]} 20. Ne4 {[%clk 0:00:00]}  Qc7 {[%clk 0:00:00]} 21. g3 {[%clk 0:00:00]}  Ng6 {[%clk 0:00:00]} 22. Qg8 {[%clk 0:00:00]}  Ke7 {[%clk 0:00:00]} 23. Rd7+ {[%clk 0:00:00]}  Qxd7 {[%clk 0:00:00]} 24. Rxd7+ {[%clk 0:00:00]}  Kxd7 {[%clk 0:00:00]} 25. Qxf7+ {[%clk 0:00:00]}  Ne7 {[%clk 0:00:00]} 26. Qxf3 {[%clk 0:00:00]}  Rc8 {[%clk 0:00:00]} 27. Qd3+ {[%clk 0:00:00]}  Kc7 {[%clk 0:00:00]} 28. Qxb5 {[%clk 0:00:00]}  Nd5 {[%clk 0:00:00]} 29. Nc5 {[%clk 0:00:00]}  Kd6 {[%clk 0:00:00]} 30. Qd7+ {[%clk 0:00:00]}  Kxc5 {[%clk 0:00:00]} 31. Qxc8+ {[%clk 0:00:00]}  Kd4 {[%clk 0:00:00]} 32. Qxf8 {[%clk 0:00:00]}  Nb4 {[%clk 0:00:00]} 33. Qxg7+ {[%clk 0:00:00]}  Kc4 {[%clk 0:00:00]} 34. Qxa7 {[%clk 0:00:00]}  Kb5 {[%clk 0:00:00]} 35. h4 {[%clk 0:00:00]}  Nd5 {[%clk 0:00:00]} 36. h5 {[%clk 0:00:00]}  Nf6 {[%clk 0:00:00]} 37. h6 {[%clk 0:00:00]}  Kc4 {[%clk 0:00:00]} 38. Qf7 {[%clk 0:00:00]}  Nh7 {[%clk 0:00:00]} 1-0


[Site "https://www.chess.com"]